[Event "44th Chess Olympiad Open 2022"]
[Site "Chennai"]
[Date "2022.08.09"]
[Round "11.74"]
[White "Traore, Bakary"]
[Black "Moncur, Cecil"]
[Result "1/2-1/2"]
[ECO "B45"]
[WhiteElo "2181"]
[BlackElo "1815"]
[Annotator "RC"]
[PlyCount "206"]
[EventDate "2022.07.29"]
[EventType "team-tourn"]
[EventCountry "IND"]
[SourceTitle "playchess.com"]
[Source "ChessBase"]
[SourceQuality "1"]
[WhiteTeam "Mali"]
[BlackTeam "Bahamas"]
[WhiteTeamCountry "MLI"]
[BlackTeamCountry "BAH"]
[TimeControl "40/5400+30:1800+30"]

1. e4 {[%emt 0:00:03]} c5 {[%emt 0:03:09]} 2. Nf3 {[%emt 0:00:30]} e6 {[%emt 0:00:10]} 3. Nc3 {[%emt 0:00:58]} Nc6 {[%emt 0:00:43]} 4. d4 {[%emt 0:00:25]} cxd4 {[%emt 0:00:16]} 5. Nxd4 {[%emt 0:00:09]} Nf6 {[%emt 0:00:21]} 6. Ndb5 {[%emt 0:00:43]} Bb4 {[%emt 0:00:29]} 7. Bf4 {[%emt 0:02:45]} e5 {[%emt 0:04:46]} 8. Bg5 {[%emt 0:00:36]} O-O {[%emt 0:02:05]} 9. a3 {[%emt 0:03:33]} Be7 {[%emt 0:08:33]} 10. Bxf6 {[%emt 0:01:44]} Bxf6 {[%emt 0:01:17]} 11. Nd6 {[%emt 0:00:44]} Nd4 {[%emt 0:04:34]} 12. Nd5 {[%emt 0:05:04]} Be7 {[%emt 0:02:29]} 13. Nxc8 {[%emt 0:00:50]} Rxc8 {[%emt 0:00:37]} 14. c3 {[%emt 0:00:26]} Nc6 {[%emt 0:06:00]} 15. Be2 {[%emt 0:00:36]} d6 {[%emt 0:05:44]} 16. O-O {[%emt 0:00:34]} Nb8 {[%emt 0:01:53]} 17. Qc2 {[%emt 0:03:49]} Nd7 {[%emt 0:01:21]} 18. Bg4 {[%emt 0:00:22]} Rc6 {[%emt 0:00:22]} 19. Bxd7 {[%emt 0:00:19]} Qxd7 {[%emt 0:00:31]} 20. Rad1 {[%emt 0:00:08]} Qe6 {[%emt 0:01:45]} 21. h3 {[%emt 0:03:08]} g6 {[%emt 0:02:43]} 22. Qb3 {[%emt 0:02:22]} Rb6 {[%emt 0:00:56]} 23. Qc2 {[%emt 0:00:33]} Rc6 {[%emt 0:00:18]} 24. Qe2 {[%emt 0:00:56]} a6 {[%emt 0:01:50]} 25. Qg4 {[%emt 0:00:52]} f5 {[%emt 0:02:04]} 26. exf5 {[%emt 0:01:00]} Rxf5 {[%emt 0:00:30]} 27. Ne3 {[%emt 0:00:51]} Rf6 {[%emt 0:00:21]} 28. Qxe6+ {[%emt 0:00:27]} Rxe6 {[%emt 0:00:22]} 29. Rfe1 {[%emt 0:00:32]} Kf7 {[%emt 0:01:11]} 30. Kf1 {[%emt 0:01:37]} Bd8 {[%emt 0:00:54]} 31. Nd5 {[%emt 0:00:38]} Bb6 {[%emt 0:04:49]} 32. Re4 {[%emt 0:00:54]} Bd8 {[%emt 0:02:44]} 33. Ke2 {[%emt 0:00:42]} g5 {[%emt 0:04:00]} 34. g4 {[%emt 0:00:51]} Rg6 {[%emt 0:02:38]} 35. Rb4 {[%emt 0:01:44]} b6 {[%emt 0:01:23]} 36. Re4 {[%emt 0:00:24]} Ke6 {[%emt 0:01:02]} 37. Nb4 {[%emt 0:00:35]} Rc8 {[%emt 0:02:06]} 38. Nxa6 {[%emt 0:00:27]} d5 {[%emt 0:01:43]} 39. Re3 {[%emt 0:00:45]} Bf6 {[%emt 0:08:42]} 40. Nb4 {[%emt 0:00:50]} Rc5 {[%emt 0:01:20]} 41. Kf3 {[%emt 0:33:50]} e4+ {[%emt 0:31:30]} 42. Kg2 {[%emt 0:00:43]} Be5 {[%emt 0:00:23]} 43. f3 {[%emt 0:00:46]} Bf4 {[%emt 0:00:50]} 44. Re2 {[%emt 0:00:07]} e3 {[%emt 0:00:56]} 45. Nc2 {[%emt 0:00:36]} Kf7 {[%emt 0:04:04]} 46. Nxe3 {[%emt 0:00:36]} Re6 {[%emt 0:01:05]} 47. Kf2 {[%emt 0:01:00]} h5 {[%emt 0:06:04]} 48. Nxd5 {[%emt 0:01:02]} Rd6 {[%emt 0:01:16]} 49. c4 {[%emt 0:04:22]} hxg4 {[%emt 0:02:35]} 50. fxg4 {[%emt 0:00:23]} b5 {[%emt 0:01:04]} 51. Rde1 {[%emt 0:02:20]} Rxc4 {[%emt 0:02:06]} 52. Re7+ {[%emt 0:00:48]} Kg6 {[%emt 0:01:01]} 53. R1e6+ {[%emt 0:01:19]} Rxe6 {[%emt 0:00:22]} 54. Rxe6+ {[%emt 0:00:14]} Kf7 {[%emt 0:00:59]} 55. Rf6+ {[%emt 0:00:38]} Kg7 {[%emt 0:02:01]} 56. Rf5 {[%emt 0:00:11]} Rc2+ {[%emt 0:00:29]} 57. Kf3 {[%emt 0:00:50]} Rxb2 {[%emt 0:01:25]} 58. Nxf4 {[%emt 0:00:03]} Rb3+ {[%emt 0:01:02]} 59. Kg2 {[%emt 0:02:00]} gxf4 {[%emt 0:00:00]} 60. Rxf4 {[%emt 0:00:00]} Rxa3 {[%emt 0:00:00]} 61. Rb4 {[%emt 0:00:00]} Ra5 {[%emt 0:00:00]} 62. Kg3 {[%emt 0:00:00]} Kg6 {[%emt 0:00:00]} 63. Kh4 {[%emt 0:00:00]} Kh6 {[%emt 0:00:00]} 64. Rb3 {[%emt 0:00:00]} Kg6 {[%emt 0:00:00]} 65. Kg3 {[%emt 0:00:00]} Kh6 {[%emt 0:00:00]} 66. h4 {[%emt 0:00:00]} Kg6 {[%emt 0:00:00]} 67. Kf3 {[%emt 0:00:00]} Kf6 {[%emt 0:00:00]} 68. Rb4 {[%emt 0:00:00]} Ra3+ {[%emt 0:00:00]} 69. Ke4 {[%emt 0:00:00]} Rh3 {[%emt 0:00:00]} 70. Rxb5 {[%emt 0:00:00]} Rxh4 {[%emt 0:00:00]} 71. Kf4 {[%emt 0:00:00]} Rh1 {[%emt 0:00:00]} 72. Rb6+ {[%emt 0:00:00]} Kg7 {[%emt 0:00:00]} 73. Kg5 {[%emt 0:00:00]} Rg1 {[%emt 0:00:00]} 74. Rb7+ {[%emt 0:00:00]} Kg8 {[%emt 0:00:00]} 75. Kh5 {[%emt 0:00:00]} Rc1 {[%emt 0:00:00]} 76. Rb6 {[%emt 0:00:00]} Kg7 {[%emt 0:00:00]} 77. Rg6+ {[%emt 0:00:00]} Kh7 {[%emt 0:00:00]} 78. Ra6 {[%emt 0:00:00]} Kg7 {[%emt 0:00:38]} 79. Ra7+ {[%emt 0:00:00]} Kg8 {[%emt 0:00:00]} 80. g5 {[%emt 0:00:00]} Rc6 {[%emt 0:00:00]} 81. Re7 {[%emt 0:00:00]} Ra6 {[%emt 0:00:00]} 82. Kg4 {[%emt 0:00:51]} Kf8 {[%emt 0:00:58]} 83. Rd7 {[%emt 0:00:00]} Kg8 {[%emt 0:00:00]} 84. Kf5 {[%emt 0:00:00]} Ra5+ {[%emt 0:00:00]} 85. Kg6 {[%emt 0:00:00]} Ra6+ {[%emt 0:00:00]} 86. Kh5 {[%emt 0:00:00]} Rb6 {[%emt 0:00:00]} 87. g6 {[%emt 0:00:00]} Rb1 {[%emt 0:00:00]} 88. Rd8+ {[%emt 0:00:00]} Kg7 {[%emt 0:00:00]} 89. Rd7+ {[%emt 0:00:00]} Kg8 {[%emt 0:00:01]} 90. Rd5 {[%emt 0:00:00]} Rh1+ {[%emt 0:00:58]} 91. Kg5 {[%emt 0:00:00]} Rg1+ {[%emt 0:00:29]} 92. Kf6 {[%emt 0:00:00]} Rf1+ {[%emt 0:00:21]} 93. Rf5 {[%emt 0:00:00]} Rxf5+ {[%emt 0:00:25]} 94. Kxf5 {[%emt 0:00:00]} Kg7 {[%emt 0:00:06]} 95. Kg5 {[%emt 0:00:03]} Kg8 {[%emt 0:00:16]} 96. Kf4 {[%emt 0:00:00]} Kg7 {[%emt 0:00:59]} 97. Kf5 {[%emt 0:00:00]} Kg8 {[%emt 0:00:05]} 98. Kf6 {[%emt 0:00:00]} Kf8 {[%emt 0:00:04]} 99. Kg5 {[%emt 0:00:00]} Kg7 {[%emt 0:00:10]} 100. Kh5 {[%emt 0:00:00]} Kg8 {[%emt 0:00:07]} 101. Kg5 {[%emt 0:00:00]} Kg7 {[%emt 0:00:07]} 102. Kf5 {[%emt 0:00:00]} Kg8 {[%emt 0:00:02]} 103. Kf6 {[%emt 0:00:00]} Kf8 {[%emt 0:00:01]} 1/2-1/2

[Event "44th Chess Olympiad Open 2022"]
[Site "Chennai"]
[Date "2022.08.09"]
[Round "11.74"]
[White "Knowles, Kendrick"]
[Black "Diarra, Sirike"]
[Result "0-1"]
[ECO "E07"]
[WhiteElo "1907"]
[BlackElo "1641"]
[Annotator "NA RC"]
[PlyCount "88"]
[EventDate "2022.07.29"]
[EventType "team-tourn"]
[EventCountry "IND"]
[SourceTitle "playchess.com"]
[Source "ChessBase"]
[SourceQuality "1"]
[WhiteTeam "Bahamas"]
[BlackTeam "Mali"]
[WhiteTeamCountry "BAH"]
[BlackTeamCountry "MLI"]
[TimeControl "40/5400+30:1800+30"]

1. Nf3 {[%emt 0:00:11]} d5 {[%emt 0:00:25]} 2. d4 {[%emt 0:00:12]} Nf6 {[%emt 0:00:32]} 3. g3 {[%emt 0:00:21]} e6 {[%emt 0:00:20]} 4. Bg2 {[%emt 0:00:07]} Be7 {[%emt 0:00:45]} 5. c4 {[%emt 0:00:05]} O-O {[%emt 0:01:06]} 6. O-O {[%emt 0:00:14]} Nbd7 {[%emt 0:01:17]} 7. Nc3 {[%emt 0:00:11]} dxc4 {[%emt 0:02:08]} 8. a4 {[%emt 0:00:23]} Nd5 {[%emt 0:02:14]} 9. e4 {[%emt 0:00:26]} Nxc3 {[%emt 0:00:10]} 10. bxc3 {[%emt 0:00:06]} c5 {[%emt 0:04:38]} 11. Qe2 {[%emt 0:02:13]} cxd4 {[%emt 0:00:40]} 12. cxd4 {[%emt 0:00:36]} Qc7 {[%emt 0:01:08]} 13. Bf4 {[%emt 0:00:46]} Qc6 {[%emt 0:03:01]} 14. Rfc1 {[%emt 0:01:32]} c3 {[%emt 0:01:09]} 15. Qd3 {[%emt 0:01:26]} Bb4 {[%emt 0:00:30]} 16. e5 {[%emt 0:00:43]} Qa6 {[%emt 0:03:11]} 17. Qb1 {[%emt 0:01:33]} Qa5 {[%emt 0:01:39]} 18. Ng5 {[%emt 0:00:37]} g6 {[%emt 0:00:09]} 19. Qb3 {[%emt 0:01:16]} Nb6 {[%emt 0:01:38]} 20. Ne4 {[%emt 0:01:12]} Nd5 {[%emt 0:02:15]} 21. Bh6 {[%emt 0:00:42]} Re8 {[%emt 0:02:04]} 22. Qd1 {[%emt 0:05:15]} Qd8 {[%emt 0:07:24]} 23. Qf3 {[%emt 0:01:25]} a5 {[%emt 0:03:47]} 24. Ng5 {[%emt 0:00:40]} f5 {[%emt 0:00:51]} 25. exf6 {[%emt 0:00:50]} Qxf6 {[%emt 0:00:12]} 26. Qd3 {[%emt 0:01:01]} Bd7 {[%emt 0:03:08]} 27. Ne4 {[%emt 0:00:32]} Qf5 {[%emt 0:00:39]} 28. h3 {[%emt 0:02:39]} Rac8 {[%emt 0:04:00]} 29. g4 {[%emt 0:01:17]} Qf7 {[%emt 0:00:20]} 30. Qg3 {[%emt 0:03:52]} Rc6 {[%emt 0:07:42]} 31. Qe5 {[%emt 0:00:00]} Be7 {[%emt 0:00:31]} 32. g5 {[%emt 0:02:07]} Rec8 {[%emt 0:06:03]} 33. Bf1 {[%emt 0:06:09]} Rb6 {[%emt 0:01:29]} 34. Rc2 {[%emt 0:01:39]} Rb2 {[%emt 0:00:45]} 35. Rxb2 {[%emt 0:04:54]} cxb2 {[%emt 0:00:09]} 36. Rb1 {[%emt 0:00:03]} Rc2 {[%emt 0:02:34]} 37. Qb8+ {[%emt 0:02:12]} Be8 {[%emt 0:00:16]} 38. Qxb7 {[%emt 0:02:07]} Nb4 {[%emt 0:02:58]} 39. Qb8 {[%emt 0:01:52]} Nc6 {[%emt 0:05:56]} 40. Qb7 {[%emt 0:00:25]} Nb4 {[%emt 0:04:29]} 41. Kg2 {[%emt 0:32:55]} Bc6 {[%emt 0:30:27]} 42. Qb8+ {[%emt 0:02:54]} Bf8 {[%emt 0:00:12]} 43. Qe5 {[%emt 0:09:26]} Qxf2+ {[%emt 0:02:28]} 44. Kh1 {[%emt 0:00:19]} Bxe4+ {[%emt 0:00:14]} 0-1

[Event "44th Chess Olympiad Open 2022"]
[Site "Chennai"]
[Date "2022.08.09"]
[Round "11.74"]
[White "Maiga, Baba Moulaye Abdalla"]
[Black "Karelina, Polina"]
[Result "1/2-1/2"]
[ECO "B07"]
[WhiteElo "1822"]
[BlackElo "1835"]
[Annotator "NA RC COMBH"]
[PlyCount "102"]
[EventDate "2022.07.29"]
[EventType "team-tourn"]
[EventCountry "IND"]
[SourceTitle "playchess.com"]
[Source "ChessBase"]
[SourceQuality "1"]
[WhiteTeam "Mali"]
[BlackTeam "Bahamas"]
[WhiteTeamCountry "MLI"]
[BlackTeamCountry "BAH"]
[TimeControl "40/5400+30:1800+30"]

1. e4 {[%emt 0:00:03]} d6 {[%emt 0:00:10]} 2. d4 {[%emt 0:00:05]} Nf6 {[%emt 0:00:11]} 3. Nc3 {[%emt 0:00:20]} c6 {[%emt 0:00:07]} 4. a4 {[%emt 0:00:50]} a5 {[%emt 0:01:52]} 5. Bc4 {[%emt 0:00:49]} Nbd7 {[%emt 0:00:53]} 6. Bg5 {[%emt 0:02:21]} e5 {[%emt 0:01:29]} 7. Nf3 {[%emt 0:02:12]} Be7 {[%emt 0:00:31]} 8. dxe5 {[%emt 0:02:07]} dxe5 {[%emt 0:01:43]} 9. O-O {[%emt 0:01:10]} O-O {[%emt 0:00:23]} 10. Qe2 {[%emt 0:01:42]} Qc7 {[%emt 0:01:23]} 11. h3 {[%emt 0:00:41]} h6 {[%emt 0:03:56]} 12. Be3 {[%emt 0:02:11]} Re8 {[%emt 0:05:22]} 13. Nh4 {[%emt 0:02:04]} Nf8 {[%emt 0:07:57]} 14. Nf5 {[%emt 0:01:32]} Be6 {[%emt 0:08:16]} 15. Bxe6 {[%emt 0:02:59]} fxe6 {[%emt 0:00:14]} 16. Qc4 {[%emt 0:02:09]} Kh8 {[%emt 0:02:44]} 17. Ng3 {[%emt 0:00:42]} Bd8 {[%emt 0:04:03]} 18. Rad1 {[%emt 0:05:21]} Qf7 {[%emt 0:03:45]} 19. Bc5 {[%emt 0:09:58]} Ng6 {[%emt 0:02:40]} 20. Rd2 {[%emt 0:02:00]} Bc7 {[%emt 0:01:28]} 21. Rfd1 {[%emt 0:01:25]} Rad8 {[%emt 0:03:05]} 22. Nf5 {[%emt 0:04:42]} Nf4 {[%emt 0:14:13]} 23. Rxd8 {[%emt 0:04:39]} Rxd8 {[%emt 0:00:24]} 24. Rxd8+ {[%emt 0:00:03]} Bxd8 {[%emt 0:00:09]} 25. Kh2 {[%emt 0:00:22]} Qh5 {[%emt 0:05:25]} 26. Ne3 {[%emt 0:01:55]} Nh7 {[%emt 0:09:14]} 27. Qf1 {[%emt 0:02:56]} Ng5 {[%emt 0:03:33]} 28. Ng4 {[%emt 0:00:58]} b5 {[%emt 0:06:02]} 29. Be3 {[%emt 0:02:03]} b4 {[%emt 0:00:29]} 30. Ne2 {[%emt 0:00:49]} Nxe4 {[%emt 0:01:46]} 31. Nxf4 {[%emt 0:01:13]} exf4 {[%emt 0:00:05]} 32. Bxf4 {[%emt 0:00:16]} Qf5 {[%emt 0:00:30]} 33. g3 {[%emt 0:04:09]} Bb6 {[%emt 0:02:21]} 34. f3 {[%emt 0:01:41]} Nc5 {[%emt 0:02:40]} 35. Ne3 {[%emt 0:00:21]} Qf6 {[%emt 0:00:54]} 36. Nc4 {[%emt 0:01:53]} Bd8 {[%emt 0:01:08]} 37. Be5 {[%emt 0:06:47]} Qf5 {[%emt 0:00:59]} 38. Qd1 {[%emt 0:00:56]} Be7 {[%emt 0:00:27]} 39. b3 {[%emt 0:01:10]} Kh7 {[%emt 0:02:05]} 40. Qe2 {[%emt 0:01:49]} Nd7 {[%emt 0:01:46]} 41. f4 {[%emt 0:33:58]} Nxe5 {[%emt 0:32:32]} 42. Nxe5 {[%emt 0:02:27]} Bf6 {[%emt 0:00:00]} 43. Nxc6 {[%emt 0:00:00]} Kg8 {[%emt 0:00:00]} 44. Ne5 {[%emt 0:00:00]} Bxe5 {[%emt 0:00:00]} 45. fxe5 {[%emt 0:00:00]} Kh8 {[%emt 0:00:00]} 46. Kg2 {[%emt 0:00:00]} Kg8 {[%emt 0:00:00]} 47. g4 {[%emt 0:00:00]} Qf4 {[%emt 0:00:00]} 48. h4 {[%emt 0:00:00]} Kh8 {[%emt 0:00:00]} 49. h5 {[%emt 0:00:00]} Kg8 {[%emt 0:00:00]} 50. Kh3 {[%emt 0:00:00]} Kh8 {[%emt 0:00:00]} 51. Kg2 {[%emt 0:00:00]} Kg8 {[%emt 0:00:00]} 1/2-1/2

[Event "44th Chess Olympiad Open 2022"]
[Site "Chennai"]
[Date "2022.08.09"]
[Round "11.74"]
[White "Albury, Noah"]
[Black "Ndiaye, Amadou"]
[Result "1-0"]
[ECO "B76"]
[WhiteElo "1324"]
[BlackElo "1968"]
[Annotator "TA"]
[PlyCount "111"]
[EventDate "2022.07.29"]
[EventType "team-tourn"]
[EventCountry "IND"]
[SourceTitle "playchess.com"]
[Source "ChessBase"]
[SourceQuality "1"]
[WhiteTeam "Bahamas"]
[BlackTeam "Mali"]
[WhiteTeamCountry "BAH"]
[BlackTeamCountry "MLI"]
[TimeControl "40/5400+30:1800+30"]

{[%evp 16,111,31,34,118,84,92,63,201,200,248,240,268,212,753,733,729,263,271,268,265,240,250,256,279,262,314,302,381,220,221,220,425,270,735,296,391,389,435,433,417,389,297,297,304,233,270,260,308,301,301,261,289,289,397,395,391,377,495,479,1270,1245,1342,1313,2260,2162,2093,2148,1807,1470,1493,1488,1364,1202,1499,1481,1369,1325,1435,1355,1419,1412,1106,1029,2216,2189,2773,2441,29981,29979,29976,29975,29984,29985,29984,29985,29985,29987]} 1. e4 {[%emt 0:00:03]} c5 {[%emt 0:00:02]} 2. Nf3 {[%emt 0:00:09]} g6 {[%emt 0:00:04]} 3. d4 {[%emt 0:00:32]} cxd4 {[%emt 0:00:02]} 4. Nxd4 {[%emt 0:00:11]} Bg7 {[%emt 0:00:01]} 5. Nc3 {[%emt 0:00:22]} Nc6 {[%emt 0:00:02]} 6. Be3 {[%emt 0:01:04]} d6 {[%emt 0:00:01]} 7. Qd2 {[%emt 0:02:18]} Nf6 {[%emt 0:00:03]} 8. f3 {[%emt 0:01:43]} O-O {[%emt 0:00:09]} 9. O-O-O {[%emt 0:01:15]} a5 {[%emt 0:03:18] B76: Sicilian Dragon: Yugoslav Attack, 9 g4 and 9 0-0-0.} (9... d5 $1 $14) 10. h4 {[%emt 0:03:22]} Bd7 {[%emt 0:02:51]} 11. h5 {[%emt 0:06:15] White is more active.} Nxd4 {[%emt 0:00:04]} (11... Nxh5 $14 12. Nxc6 bxc6) 12. Bxd4 $18 {[%emt 0:01:07] [#]} b5 $146 {[%emt 0:03:42]} ({Predecessor:} 12... Qc7 13. Nd5 Nxd5 14. exd5 Bxd4 15. Qxd4 Bf5 16. c3 Qd7 17. g4 e5 18. Qg1 Qa4 19. gxf5 Qxa2 {1-0 (34) Mueller,M (2320)-Mueller,J Mendig 1994}) 13. hxg6 {[%emt 0:04:16]} (13. Nxb5 $6 Nxh5 14. Bxg7 Kxg7 15. Nxd6 (15. g4 Bxb5 16. gxh5 Bxf1 $16) 15... exd6) 13... fxg6 {[%emt 0:00:51]} 14. e5 {[%emt 0:07:00]} ({Resist} 14. Bxb5 $6 Bxb5 15. Nxb5 a4 $18) 14... b4 $2 {[%emt 0:00:15]} (14... dxe5 15. Bxe5 e6 16. Nxb5 Bxb5) 15. exf6 {[%emt 0:02:48]} bxc3 {[%emt 0:00:03]} 16. Bc4+ $2 {[%emt 0:07:49]} (16. Bxc3 Rxf6 17. Bxf6 Bxf6 18. Bc4+ e6 19. Qxd6) 16... e6 {[%emt 0:04:13]} 17. Bxc3 {[%emt 0:01:46] Really sharp!} Bxf6 {[%emt 0:03:33]} 18. Bxf6 {[%emt 0:00:36]} Qxf6 {[%emt 0:00:21]} 19. Qxd6 $40 {[%emt 0:02:37][%mdl 128] White goes for the king.} Rab8 {[%emt 0:00:16]} 20. Qd4 {[%emt 0:06:35]} ({Inferior is} 20. Qxd7 Qxb2+ 21. Kd2 Rfd8 22. Bxe6+ Kf8 23. Rxh7 Rxd7+ 24. Rxd7 Rc8 25. Rf7+ Ke8 26. Bxc8 Kxf7 $15) 20... Qg5+ {[%emt 0:04:31]} 21. Kb1 {[%emt 0:03:40]} Rb7 {[%emt 0:00:57]} 22. Qh4 {[%emt 0:05:09]} (22. Ba6 $142 Rc7 23. Qb6) 22... Qxh4 {[%emt 0:01:32]} 23. Rxh4 {[%emt 0:00:06]} Rfb8 $2 {[%emt 0:00:11]} (23... Re8 24. Rhd4 Bc8) 24. b3 {[%emt 0:00:41][%cal Od1d7]} a4 $2 {[%emt 0:00:50] [#]} (24... Re8 25. Rd6 Kg7) 25. Rhd4 {[%emt 0:01:41]} (25. Rxd7 $142 $1 {[%mdl 512]} Rxd7 26. Bxe6+ Rf7 27. Rf4) 25... Bc8 {[%emt 0:00:20]} 26. Rd8+ {[%emt 0:01:45]} Kg7 {[%emt 0:00:06]} 27. Ba6 {[%emt 0:00:35]} Rc7 {[%emt 0:00:49]} 28. Rxc8 {[%emt 0:00:42]} Rbxc8 {[%emt 0:01:35]} 29. Bxc8 {[%emt 0:00:09]} Rxc8 {[%emt 0:00:08]} 30. bxa4 {[%emt 0:00:54][%mdl 4096] Endgame Threatens to win with Rd7+. KR-KR} Rb8+ {[%emt 0:00:03]} 31. Kc1 {[%emt 0:00:15]} Rb4 {[%emt 0:00:05]} 32. Rd7+ {[%emt 0:00:33]} Kf6 {[%emt 0:00:46]} 33. Rxh7 {[%emt 0:01:10]} Rxa4 {[%emt 0:00:02]} 34. Kb2 {[%emt 0:00:24] Black must now prevent Kb3.} Rb4+ {[%emt 0:00:39]} 35. Kc3 {[%emt 0:00:26]} Ra4 {[%emt 0:00:36]} 36. Kb3 {[%emt 0:00:13]} Rd4 {[%emt 0:00:11]} 37. a4 {[%emt 0:01:51] Strongly threatening a5.} Rd6 {[%emt 0:00:35]} (37... Ke5 $142 38. a5 Rd1) 38. a5 {[%emt 0:00:27]} Ra6 {[%emt 0:01:34]} 39. Kb4 {[%emt 0:00:12]} Ke5 {[%emt 0:00:09]} 40. Kb5 {[%emt 0:00:40]} Rd6 {[%emt 0:00:11]} 41. c4 {[%emt 0:31:37]} Rd2 {[%emt 0:30:08]} 42. g3 {[%emt 0:02:10]} Rb2+ {[%emt 0:00:07]} 43. Kc5 {[%emt 0:00:14]} Ra2 {[%emt 0:00:09]} 44. Ra7 {[%emt 0:00:42]} Ra3 {[%emt 0:02:30]} 45. f4+ {[%emt 0:01:25]} Ke4 {[%emt 0:00:10]} 46. Kd6 {[%emt 0:01:40]} Rxg3 {[%emt 0:00:58]} 47. Kxe6 {[%emt 0:01:01]} Rc3 {[%emt 0:00:05]} 48. Rc7 {[%emt 0:07:56]} Ra3 {[%emt 0:00:03] [#]} 49. Rc5 $1 {[%emt 0:00:30]} Kd4 {[%emt 0:00:08]} 50. Kd6 {[%emt 0:02:31]} Rf3 {[%emt 0:00:09]} 51. a6 {[%emt 0:00:11] Intending Ra5 and mate.} Rxf4 {[%emt 0:00:03]} 52. Ra5 {[%emt 0:01:29] White mates.} Rf8 {[%emt 0:02:54]} 53. a7 {[%emt 0:00:58]} Kxc4 {[%emt 0:00:05]} 54. a8=Q {[%emt 0:00:45]} Rxa8 {[%emt 0:00:12]} 55. Rxa8 {[%emt 0:00:06]} Kd4 {[%emt 0:00:07]} 56. Rg8 {[%emt 0:00:16] White took control after the opening.  Weighted Error Value: White=0.57/Black=0.63} 1-0

[Event "44th Chess Olympiad Open 2022"]
[Site "Chennai"]
[Date "2022.08.09"]
[Round "11.76"]
[White "Isam, Gaith"]
[Black "de Araujo, Helder"]
[Result "1-0"]
[ECO "C00"]
[WhiteElo "1828"]
[BlackElo "1742"]
[Annotator "NA RC COMBH"]
[PlyCount "55"]
[EventDate "2022.07.29"]
[EventType "team-tourn"]
[EventCountry "IND"]
[SourceTitle "playchess.com"]
[Source "ChessBase"]
[SourceQuality "1"]
[WhiteTeam "Palestine"]
[BlackTeam "TLS"]
[WhiteTeamCountry "PLE"]
[TimeControl "40/5400+30:1800+30"]

1. e4 {[%emt 0:00:07]} e6 {[%emt 0:01:21]} 2. f4 {[%emt 0:00:49]} d5 {[%emt 0:00:22]} 3. e5 {[%emt 0:00:11]} Nh6 {[%emt 0:00:24]} 4. Nf3 {[%emt 0:00:10]} c5 {[%emt 0:00:22]} 5. Bb5+ {[%emt 0:01:10]} Bd7 {[%emt 0:00:13]} 6. Bxd7+ {[%emt 0:02:33]} Nxd7 {[%emt 0:00:20]} 7. d3 {[%emt 0:00:15]} Be7 {[%emt 0:00:26]} 8. O-O {[%emt 0:00:07]} O-O {[%emt 0:00:21]} 9. Qe1 {[%emt 0:00:50]} Rc8 {[%emt 0:00:44]} 10. Nc3 {[%emt 0:00:45]} a6 {[%emt 0:00:39]} 11. h3 {[%emt 0:00:32]} b5 {[%emt 0:01:07]} 12. g4 {[%emt 0:00:41]} Qb6 {[%emt 0:01:15]} 13. f5 {[%emt 0:03:45]} d4 {[%emt 0:01:34]} 14. Ne2 {[%emt 0:06:46]} f6 {[%emt 0:10:06]} 15. exf6 {[%emt 0:02:16]} Nxf6 {[%emt 0:03:40]} 16. g5 {[%emt 0:03:52]} Nxf5 {[%emt 0:00:19]} 17. gxf6 {[%emt 0:00:16]} Rxf6 {[%emt 0:00:15]} 18. Nf4 {[%emt 0:05:54]} Rcf8 {[%emt 0:01:05]} 19. Ne5 {[%emt 0:02:56]} Ne3 {[%emt 0:07:01]} 20. Bxe3 {[%emt 0:01:47]} dxe3 {[%emt 0:00:33]} 21. Nd7 {[%emt 0:00:12]} Qc7 {[%emt 0:01:50]} 22. Nxf6+ {[%emt 0:01:01]} Rxf6 {[%emt 0:02:14]} 23. Qxe3 {[%emt 0:01:28]} c4 {[%emt 0:03:28]} 24. d4 {[%emt 0:01:14]} Qc6 {[%emt 0:01:09]} 25. Rae1 {[%emt 0:02:26]} Bd6 {[%emt 0:00:32]} 26. Nxe6 {[%emt 0:03:49]} Rg6+ {[%emt 0:01:46]} 27. Ng5 {[%emt 0:00:10]} h6 {[%emt 0:00:42]} 28. Qe8+ {[%emt 0:00:13]} 1-0

[Event "44th Chess Olympiad Open 2022"]
[Site "Chennai"]
[Date "2022.08.09"]
[Round "11.76"]
[White "Shawabke Ziyad"]
[Black "dos Reis, Tito"]
[Result "1-0"]
[ECO "A53"]
[WhiteElo "1786"]
[BlackElo "1658"]
[Annotator "NA RC COMBH"]
[PlyCount "93"]
[EventDate "2022.07.29"]
[EventType "team-tourn"]
[EventCountry "IND"]
[SourceTitle "playchess.com"]
[Source "ChessBase"]
[SourceQuality "1"]
[WhiteTeam "Palestine"]
[BlackTeam "TLS"]
[WhiteTeamCountry "PLE"]
[TimeControl "40/5400+30:1800+30"]

1. c4 {[%emt 0:00:03]} d6 {[%emt 0:00:19]} 2. d4 {[%emt 0:00:12]} Nf6 {[%emt 0:00:13]} 3. Nc3 {[%emt 0:00:09]} c6 {[%emt 0:00:11]} 4. e4 {[%emt 0:00:28]} Qa5 {[%emt 0:00:40]} 5. Bd3 {[%emt 0:00:31]} h6 {[%emt 0:00:51]} 6. Nge2 {[%emt 0:02:06]} Bg4 {[%emt 0:00:35]} 7. f3 {[%emt 0:01:25]} Bc8 {[%emt 0:02:53]} 8. Be3 {[%emt 0:03:37]} Nbd7 {[%emt 0:00:30]} 9. Qd2 {[%emt 0:04:02]} e5 {[%emt 0:00:37]} 10. d5 {[%emt 0:02:02]} Be7 {[%emt 0:03:02]} 11. O-O {[%emt 0:01:05]} a6 {[%emt 0:09:33]} 12. a3 {[%emt 0:02:07]} c5 {[%emt 0:00:51]} 13. Rfb1 {[%emt 0:00:41]} Qd8 {[%emt 0:00:58]} 14. b4 {[%emt 0:00:45]} b6 {[%emt 0:00:12]} 15. Bc2 {[%emt 0:05:32]} Nf8 {[%emt 0:01:18]} 16. Ba4+ {[%emt 0:00:58]} Bd7 {[%emt 0:00:59]} 17. Bxd7+ {[%emt 0:02:28]} N8xd7 {[%emt 0:00:13]} 18. bxc5 {[%emt 0:01:38]} bxc5 {[%emt 0:00:50]} 19. Qc2 {[%emt 0:03:09]} O-O {[%emt 0:00:25]} 20. Bd2 {[%emt 0:04:24]} Nh5 {[%emt 0:01:38]} 21. a4 {[%emt 0:04:14]} Qc8 {[%emt 0:03:56]} 22. a5 {[%emt 0:03:41]} Rb8 {[%emt 0:02:19]} 23. Rxb8 {[%emt 0:00:23]} Qxb8 {[%emt 0:00:12]} 24. Qa4 {[%emt 0:02:29]} Nhf6 {[%emt 0:02:32]} 25. Qc6 {[%emt 0:03:21]} Rc8 {[%emt 0:01:57]} 26. Qxa6 {[%emt 0:00:51]} Qa8 {[%emt 0:02:19]} 27. Qb5 {[%emt 0:07:22]} Qa7 {[%emt 0:05:20]} 28. Qa4 {[%emt 0:01:24]} Bd8 {[%emt 0:02:08]} 29. Nb5 {[%emt 0:06:41]} Qa6 {[%emt 0:00:14]} 30. Ng3 {[%emt 0:01:21]} Kf8 {[%emt 0:07:50]} 31. Nf5 {[%emt 0:01:06]} Ne8 {[%emt 0:03:48]} 32. Nbxd6 {[%emt 0:09:26]} Nxd6 {[%emt 0:00:47]} 33. Qxd7 {[%emt 0:00:24]} Nxc4 {[%emt 0:00:56]} 34. Bc3 {[%emt 0:01:46]} Bg5 {[%emt 0:05:39]} 35. Rb1 {[%emt 0:01:41]} Ra8 {[%emt 0:03:49]} 36. Rb7 {[%emt 0:00:45]} Qg6 {[%emt 0:00:24]} 37. a6 {[%emt 0:03:35]} Rd8 {[%emt 0:03:26]} 38. Qb5 {[%emt 0:01:34]} Ne3 {[%emt 0:07:45]} 39. Qxc5+ {[%emt 0:05:03]} Kg8 {[%emt 0:00:37]} 40. Rb6 {[%emt 0:00:33]} Qh5 {[%emt 0:05:47]} 41. Nxe3 {[%emt 0:31:14]} Bf4 {[%emt 0:30:44]} 42. Nf1 {[%emt 0:02:06]} g5 {[%emt 0:02:19]} 43. a7 {[%emt 0:00:24]} g4 {[%emt 0:04:38]} 44. fxg4 {[%emt 0:00:41]} Qxg4 {[%emt 0:01:14]} 45. Rb8 {[%emt 0:00:16]} Rxb8 {[%emt 0:07:36]} 46. axb8=Q+ {[%emt 0:03:26]} Kh7 {[%emt 0:02:19]} 47. Bxe5 {[%emt 0:03:57]} 1-0